[Event "SWE-ch Class 1 2019"]
[Site "Eskilstuna"]
[Date "2019.07.12"]
[Round "5.6"]
[White "Eriksson, Joel"]
[Black "Carlsson, Gustav"]
[Result "1/2-1/2"]
[ECO "D00"]
[WhiteElo "1998"]
[BlackElo "1982"]
[Annotator "NA"]
[PlyCount "138"]
[EventDate "2019.07.06"]
[EventType "tourn"]
[EventCountry "SWE"]
[SourceTitle "playchess.com"]
[Source "ChessBase"]
[SourceQuality "1"]
[TimeControl "40/5400+30:1800+30"]

1. d4 {[%emt 0:00:00]} Nf6 {[%emt 0:00:00]} 2. Bg5 {[%emt 0:00:00]} d5 {[%emt 0:00:03]} 3. Bxf6 {[%emt 0:00:00]} gxf6 {[%emt 0:00:32]} 4. c4 {[%emt 0:00:53]} c6 {[%emt 0:01:10]} 5. Nc3 {[%emt 0:00:36]} e5 {[%emt 0:05:18]} 6. e3 {[%emt 0:05:08]} Be6 {[%emt 0:09:12]} 7. Qb3 {[%emt 0:06:44]} Qb6 {[%emt 0:03:38]} 8. Nf3 {[%emt 0:08:28]} e4 {[%emt 0:06:00]} 9. Nd2 {[%emt 0:01:06]} Nd7 {[%emt 0:09:29]} 10. Qxb6 {[%emt 0:12:29]} axb6 {[%emt 0:00:52]} 11. cxd5 {[%emt 0:02:10]} cxd5 {[%emt 0:00:10]} 12. Bb5 {[%emt 0:01:13]} Rg8 {[%emt 0:03:57]} 13. g3 {[%emt 0:03:49]} Bd6 {[%emt 0:05:47]} 14. O-O-O {[%emt 0:06:43]} Ke7 {[%emt 0:01:43]} 15. Kb1 {[%emt 0:00:42]} f5 {[%emt 0:02:05]} 16. Rhg1 {[%emt 0:12:59]} Nf6 {[%emt 0:06:26]} 17. Nb3 {[%emt 0:00:00]} Ng4 {[%emt 0:09:08]} 18. Rg2 {[%emt 0:00:00]} h5 {[%emt 0:02:39]} 19. Be2 {[%emt 0:03:40]} Nf6 {[%emt 0:05:23]} 20. Rgg1 {[%emt 0:01:04]} h4 {[%emt 0:02:32]} 21. Nb5 {[%emt 0:01:43]} Bb8 {[%emt 0:01:08]} 22. Rc1 {[%emt 0:05:38]} Bd7 {[%emt 0:01:20]} 23. Nc3 {[%emt 0:00:19]} h3 {[%emt 0:00:40]} 24. Na1 {[%emt 0:01:55]} Ke6 {[%emt 0:01:46]} 25. Nc2 {[%emt 0:00:49]} Bd6 {[%emt 0:00:31]} 26. b3 {[%emt 0:02:53]} Ng4 {[%emt 0:01:07]} 27. Bxg4 {[%emt 0:00:23]} fxg4 {[%emt 0:00:19]} 28. Ne2 {[%emt 0:01:10]} Rgc8 {[%emt 0:01:07]} 29. Nf4+ {[%emt 0:01:28]} Bxf4 {[%emt 0:00:14]} 30. exf4 {[%emt 0:00:29]} Rc3 {[%emt 0:01:23]} 31. Ne3 {[%emt 0:01:10]} Rxc1+ {[%emt 0:01:11]} 32. Rxc1 {[%emt 0:00:33]} Kd6 {[%emt 0:00:34]} 33. Kb2 {[%emt 0:03:58]} f5 {[%emt 0:00:55]} 34. a4 {[%emt 0:01:23]} Ra5 {[%emt 0:01:50]} 35. Ka3 {[%emt 0:02:11]} Ra8 {[%emt 0:05:08]} 36. Kb4 {[%emt 0:00:44]} Ra6 {[%emt 0:02:02]} 37. Ra1 {[%emt 0:01:13]} b5 {[%emt 0:03:29]} 38. a5 {[%emt 0:01:14]} Rc6 {[%emt 0:00:28]} 39. Rd1 {[%emt 0:01:44]} Rc8 {[%emt 0:01:14]} 40. Rd2 {[%emt 0:01:25]} Rc1 {[%emt 0:02:41]} 41. Rd1 {[%emt 0:34:23]} Rc8 {[%emt 0:31:18]} 42. Ra1 {[%emt 0:01:09]} Rc6 {[%emt 0:00:14]} 43. Ka3 {[%emt 0:00:00]} Ke6 {[%emt 0:00:00]} 44. Kb2 {[%emt 0:00:00]} Ra6 {[%emt 0:00:00]} 45. Nd1 {[%emt 0:00:00]} Kd6 {[%emt 0:00:00]} 46. Nc3 {[%emt 0:00:00]} Ra8 {[%emt 0:00:00]} 47. Ra2 {[%emt 0:00:00]} b4 {[%emt 0:00:00]} 48. Nd1 {[%emt 0:00:00]} Kc6 {[%emt 0:00:00]} 49. Ne3 {[%emt 0:00:00]} Be6 {[%emt 0:00:00]} 50. Nc2 {[%emt 0:00:00]} Kb5 {[%emt 0:00:00]} 51. Ra4 {[%emt 0:00:00]} Rxa5 {[%emt 0:00:00]} 52. Rxb4+ {[%emt 0:00:00]} Ka6 {[%emt 0:00:12]} 53. Ra4 {[%emt 0:00:06]} Rxa4 {[%emt 0:00:15]} 54. bxa4 {[%emt 0:00:06]} Ka5 {[%emt 0:00:18]} 55. Ka3 {[%emt 0:00:40]} b5 {[%emt 0:01:03]} 56. axb5 {[%emt 0:04:17]} Kxb5 {[%emt 0:00:16]} 57. Kb3 {[%emt 0:02:43]} Ka5 {[%emt 0:00:31]} 58. Nb4 {[%emt 0:00:27]} Kb5 {[%emt 0:00:15]} 59. Kc3 {[%emt 0:00:36]} Bf7 {[%emt 0:00:40]} 60. Nc2 {[%emt 0:00:22]} Be6 {[%emt 0:00:53]} 61. Na1 {[%emt 0:00:50]} Bd7 {[%emt 0:00:37]} 62. Nb3 {[%emt 0:00:46]} Be6 {[%emt 0:00:38]} 63. Nc5 {[%emt 0:00:23]} Bc8 {[%emt 0:00:08]} 64. Kb3 {[%emt 0:00:22]} Ka5 {[%emt 0:00:14]} 65. Na4 {[%emt 0:00:41]} Bd7 {[%emt 0:00:27]} 66. Nc3 {[%emt 0:01:21]} Bc6 {[%emt 0:00:17]} 67. Ka3 {[%emt 0:00:28]} Bb7 {[%emt 0:00:33]} 68. Na4 {[%emt 0:01:56]} Ba6 {[%emt 0:00:35]} 69. Nc5 {[%emt 0:00:34]} Bc8 {[%emt 0:00:07]} 1/2-1/2

[Event "SWE-ch Class 1 2019"]
[Site "Eskilstuna"]
[Date "2019.07.12"]
[Round "5.7"]
[White "Jonsson, Krister"]
[Black "Akerlund, Fredrik"]
[Result "1-0"]
[ECO "E81"]
[WhiteElo "2068"]
[BlackElo "1815"]
[Annotator "NA"]
[PlyCount "99"]
[EventDate "2019.07.06"]
[EventType "tourn"]
[EventCountry "SWE"]
[SourceTitle "playchess.com"]
[Source "ChessBase"]
[SourceQuality "1"]
[TimeControl "40/5400+30:1800+30"]

1. d4 {[%emt 0:00:00]} Nf6 {[%emt 0:00:00]} 2. c4 {[%emt 0:00:00]} g6 {[%emt 0:00:19]} 3. Nc3 {[%emt 0:00:00]} Bg7 {[%emt 0:00:23]} 4. e4 {[%emt 0:02:49]} d6 {[%emt 0:02:23]} 5. f3 {[%emt 0:00:07]} O-O {[%emt 0:00:31]} 6. Be3 {[%emt 0:00:10]} c5 {[%emt 0:03:57]} 7. Nge2 {[%emt 0:00:53]} Nc6 {[%emt 0:01:41]} 8. d5 {[%emt 0:02:09]} Ne5 {[%emt 0:00:12]} 9. Nc1 {[%emt 0:00:19]} e6 {[%emt 0:02:06]} 10. Be2 {[%emt 0:00:36]} exd5 {[%emt 0:00:46]} 11. cxd5 {[%emt 0:00:08]} a6 {[%emt 0:03:56]} 12. a4 {[%emt 0:00:53]} b6 {[%emt 0:01:59]} 13. O-O {[%emt 0:00:59]} h5 {[%emt 0:05:14]} 14. h3 {[%emt 0:06:40]} Nh7 {[%emt 0:06:59]} 15. f4 {[%emt 0:14:51]} Nd7 {[%emt 0:11:48]} 16. Bf3 {[%emt 0:00:25]} Rb8 {[%emt 0:01:46]} 17. Nb3 {[%emt 0:16:17]} Re8 {[%emt 0:09:55]} 18. Qd3 {[%emt 0:05:37]} Ndf8 {[%emt 0:09:55]} 19. Nd2 {[%emt 0:04:17]} Qh4 {[%emt 0:03:55]} 20. Nc4 {[%emt 0:11:30]} Qe7 {[%emt 0:03:39]} 21. Rfe1 {[%emt 0:04:35]} f5 {[%emt 0:07:11]} 22. Bf2 {[%emt 0:07:10]} Qc7 {[%emt 0:01:20]} 23. e5 {[%emt 0:01:13]} dxe5 {[%emt 0:01:02]} 24. d6 {[%emt 0:01:33]} Qf7 {[%emt 0:03:45]} 25. Nxe5 {[%emt 0:01:25]} Bxe5 {[%emt 0:01:29]} 26. fxe5 {[%emt 0:00:07]} Ng5 {[%emt 0:00:34]} 27. Bd5 {[%emt 0:02:31]} Nfe6 {[%emt 0:00:49]} 28. h4 {[%emt 0:01:55]} Nh7 {[%emt 0:00:37]} 29. Rad1 {[%emt 0:01:01]} Rd8 {[%emt 0:01:24]} 30. Be3 {[%emt 0:01:32]} Nhf8 {[%emt 0:00:31]} 31. Bg5 {[%emt 0:00:31]} Re8 {[%emt 0:03:41]} 32. Be7 {[%emt 0:03:35]} Rxe7 {[%emt 0:00:31]} 33. dxe7 {[%emt 0:00:07]} Qxe7 {[%emt 0:00:03]} 34. Bxe6+ {[%emt 0:02:07]} Bxe6 {[%emt 0:01:32]} 35. Qd6 {[%emt 0:00:14]} Rb7 {[%emt 0:00:57]} 36. Qxe7 {[%emt 0:04:19]} Rxe7 {[%emt 0:00:01]} 37. Nd5 {[%emt 0:00:16]} Rb7 {[%emt 0:02:27]} 38. Nf6+ {[%emt 0:00:24]} Kf7 {[%emt 0:00:42]} 39. Rd6 {[%emt 0:00:42]} a5 {[%emt 0:00:35]} 40. Nd5 {[%emt 0:00:29]} Bxd5 {[%emt 0:05:59]} 41. Rxd5 {[%emt 0:30:07]} Ne6 {[%emt 0:30:38]} 42. Re3 {[%emt 0:00:00]} Nd4 {[%emt 0:00:00]} 43. Kf1 {[%emt 0:00:00]} f4 {[%emt 0:00:00]} 44. Re4 {[%emt 0:00:00]} Ke6 {[%emt 0:00:00]} 45. Rd6+ {[%emt 0:00:00]} Kf5 {[%emt 0:00:00]} 46. Re1 {[%emt 0:00:00]} Nc2 {[%emt 0:00:00]} 47. Rf6+ {[%emt 0:00:00]} Kg4 {[%emt 0:00:00]} 48. Rxg6+ {[%emt 0:00:00]} Kxh4 {[%emt 0:00:00]} 49. Rc1 {[%emt 0:00:00]} Ne3+ {[%emt 0:00:00]} 50. Ke2 {[%emt 0:00:00]} 1-0

[Event "SWE-ch Class 1 2019"]
[Site "Eskilstuna"]
[Date "2019.07.12"]
[Round "5.8"]
[White "Willinger, Tim"]
[Black "Magnussen, Pal"]
[Result "1-0"]
[ECO "A57"]
[WhiteElo "2053"]
[BlackElo "1985"]
[Annotator "NA"]
[PlyCount "87"]
[EventDate "2019.07.06"]
[EventType "tourn"]
[EventCountry "SWE"]
[SourceTitle "playchess.com"]
[Source "ChessBase"]
[SourceQuality "1"]
[TimeControl "40/5400+30:1800+30"]

1. d4 {[%emt 0:05:00]} Nf6 {[%emt 0:04:37]} 2. c4 {[%emt 0:00:06]} c5 {[%emt 0:00:13]} 3. d5 {[%emt 0:00:06]} b5 {[%emt 0:00:04]} 4. cxb5 {[%emt 0:00:06]} a6 {[%emt 0:00:04]} 5. b6 {[%emt 0:00:06]} Qxb6 {[%emt 0:00:18]} 6. Nc3 {[%emt 0:00:08]} g6 {[%emt 0:00:34]} 7. Nf3 {[%emt 0:00:10]} Bg7 {[%emt 0:00:22]} 8. e4 {[%emt 0:00:14]} d6 {[%emt 0:00:13]} 9. Nd2 {[%emt 0:00:11]} O-O {[%emt 0:02:04]} 10. Be2 {[%emt 0:00:20]} Nbd7 {[%emt 0:02:37]} 11. Nc4 {[%emt 0:01:50]} Qc7 {[%emt 0:07:48]} 12. Bf4 {[%emt 0:01:30]} Bb7 {[%emt 0:03:02]} 13. O-O {[%emt 0:03:39]} Rfb8 {[%emt 0:02:01]} 14. Rc1 {[%emt 0:03:08]} Nb6 {[%emt 0:08:30]} 15. Ne3 {[%emt 0:01:39]} Bc8 {[%emt 0:05:14]} 16. b3 {[%emt 0:04:55]} Bd7 {[%emt 0:05:12]} 17. Qc2 {[%emt 0:09:27]} Nc8 {[%emt 0:15:41]} 18. Bg5 {[%emt 0:09:55]} Bb5 {[%emt 0:02:12]} 19. Kh1 {[%emt 0:01:29]} Bxe2 {[%emt 0:01:49]} 20. Qxe2 {[%emt 0:02:02]} Rb4 {[%emt 0:01:49]} 21. Nc4 {[%emt 0:08:16]} Nd7 {[%emt 0:01:27]} 22. Na4 {[%emt 0:08:07]} Qd8 {[%emt 0:10:20]} 23. Bd2 {[%emt 0:01:23]} Rb5 {[%emt 0:00:52]} 24. Bc3 {[%emt 0:01:53]} Qf8 {[%emt 0:01:18]} 25. f4 {[%emt 0:05:31]} Bxc3 {[%emt 0:02:38]} 26. Rxc3 {[%emt 0:01:19]} Qg7 {[%emt 0:03:47]} 27. Rcf3 {[%emt 0:00:42]} f6 {[%emt 0:04:39]} 28. e5 {[%emt 0:08:44]} Ndb6 {[%emt 0:05:17]} 29. exd6 {[%emt 0:04:33]} exd6 {[%emt 0:00:26]} 30. Qe6+ {[%emt 0:09:48]} Qf7 {[%emt 0:00:35]} 31. Qxf7+ {[%emt 0:00:14]} Kxf7 {[%emt 0:00:19]} 32. Naxb6 {[%emt 0:00:06]} Rxb6 {[%emt 0:00:27]} 33. Nxb6 {[%emt 0:00:22]} Nxb6 {[%emt 0:00:07]} 34. f5 {[%emt 0:02:12]} g5 {[%emt 0:00:33]} 35. Rh3 {[%emt 0:00:21]} Kg7 {[%emt 0:01:40]} 36. Re1 {[%emt 0:00:56]} Ra7 {[%emt 0:01:23]} 37. Rhe3 {[%emt 0:02:31]} Nxd5 {[%emt 0:00:51]} 38. Rd3 {[%emt 0:01:34]} Ne7 {[%emt 0:00:22]} 39. Rxd6 {[%emt 0:00:38]} Nxf5 {[%emt 0:00:51]} 40. Rc6 {[%emt 0:00:26]} g4 {[%emt 0:02:09]} 41. Rxc5 {[%emt 0:33:43]} Nh4 {[%emt 0:33:17]} 42. Rec1 {[%emt 0:00:00]} Kg6 {[%emt 0:00:00]} 43. Rc7 {[%emt 0:00:00]} Ra8 {[%emt 0:00:00]} 44. Rc8 {[%emt 0:00:00]} 1-0

[Event "SWE-ch Class 1 2019"]
[Site "Eskilstuna"]
[Date "2019.07.12"]
[Round "5.9"]
[White "Thollin, Robert"]
[Black "Grundel, Sam"]
[Result "1/2-1/2"]
[ECO "B31"]
[WhiteElo "1983"]
[BlackElo "2069"]
[Annotator "NA"]
[PlyCount "26"]
[EventDate "2019.07.06"]
[EventType "tourn"]
[EventCountry "SWE"]
[SourceTitle "playchess.com"]
[Source "ChessBase"]
[SourceQuality "1"]
[TimeControl "40/5400+30:1800+30"]

1. e4 {[%emt 0:00:00]} c5 {[%emt 0:00:00]} 2. Nf3 {[%emt 0:00:08]} Nc6 {[%emt 0:00:00]} 3. Bb5 {[%emt 0:00:37]} g6 {[%emt 0:00:06]} 4. O-O {[%emt 0:00:49]} Bg7 {[%emt 0:00:10]} 5. Nc3 {[%emt 0:04:33]} Nd4 {[%emt 0:06:11]} 6. Bc4 {[%emt 0:00:26]} d6 {[%emt 0:01:19]} 7. Nxd4 {[%emt 0:03:42]} Bxd4 {[%emt 0:00:42]} 8. d3 {[%emt 0:02:15]} e6 {[%emt 0:04:40]} 9. a4 {[%emt 0:11:15]} a6 {[%emt 0:04:52]} 10. Ne2 {[%emt 0:11:37]} Bg7 {[%emt 0:01:09]} 11. c3 {[%emt 0:00:41]} Qc7 {[%emt 0:18:21]} 12. f4 {[%emt 0:07:19]} Ne7 {[%emt 0:00:31]} 13. Bb3 {[%emt 0:11:22]} d5 {[%emt 0:04:38]} 1/2-1/2

[Event "SWE-ch Class 1 2019"]
[Site "Eskilstuna"]
[Date "2019.07.12"]
[Round "5.10"]
[White "Karlsson, Roger"]
[Black "Carnstam, Tomas"]
[Result "0-1"]
[ECO "B26"]
[WhiteElo "1915"]
[BlackElo "1967"]
[Annotator "NA"]
[PlyCount "80"]
[EventDate "2019.07.06"]
[EventType "tourn"]
[EventCountry "SWE"]
[SourceTitle "playchess.com"]
[Source "ChessBase"]
[SourceQuality "1"]
[TimeControl "40/5400+30:1800+30"]

1. e4 {[%emt 0:00:00]} c5 {[%emt 0:00:00]} 2. Nc3 {[%emt 0:00:00]} Nc6 {[%emt 0:00:00]} 3. g3 {[%emt 0:00:00]} g6 {[%emt 0:00:22]} 4. Bg2 {[%emt 0:00:00]} Bg7 {[%emt 0:00:10]} 5. d3 {[%emt 0:00:03]} e6 {[%emt 0:00:44]} 6. Be3 {[%emt 0:00:14]} d6 {[%emt 0:00:18]} 7. Qd2 {[%emt 0:00:39]} Qb6 {[%emt 0:03:24]} 8. Nd1 {[%emt 0:02:54]} Bd7 {[%emt 0:10:35]} 9. c3 {[%emt 0:02:36]} Rc8 {[%emt 0:03:06]} 10. Ne2 {[%emt 0:01:50]} h5 {[%emt 0:06:59]} 11. O-O {[%emt 0:09:55]} h4 {[%emt 0:03:50]} 12. g4 {[%emt 0:14:28]} h3 {[%emt 0:01:22]} 13. Bh1 {[%emt 0:02:34]} e5 {[%emt 0:12:44]} 14. g5 {[%emt 0:01:24]} f5 {[%emt 0:02:04]} 15. f4 {[%emt 0:03:43]} Nge7 {[%emt 0:01:51]} 16. Nf2 {[%emt 0:12:50]} a5 {[%emt 0:06:47]} 17. Rad1 {[%emt 0:06:34]} Nd4 {[%emt 0:04:50]} 18. Ng3 {[%emt 0:05:54]} Ne6 {[%emt 0:04:02]} 19. Ne2 {[%emt 0:05:29]} Nc6 {[%emt 0:09:21]} 20. Rde1 {[%emt 0:05:18]} Kd8 {[%emt 0:03:17]} 21. Nd1 {[%emt 0:08:42]} Ne7 {[%emt 0:01:19]} 22. c4 {[%emt 0:01:11]} exf4 {[%emt 0:07:27]} 23. Nxf4 {[%emt 0:01:59]} Nxg5 {[%emt 0:00:40]} 24. Nxg6 {[%emt 0:02:59]} Nxg6 {[%emt 0:01:13]} 25. Bxg5+ {[%emt 0:00:38]} Kc7 {[%emt 0:00:41]} 26. exf5 {[%emt 0:02:07]} Bd4+ {[%emt 0:00:30]} 27. Be3 {[%emt 0:00:54]} Ne5 {[%emt 0:00:48]} 28. Bd5 {[%emt 0:00:54]} Rhg8+ {[%emt 0:02:02]} 29. Kh1 {[%emt 0:01:41]} Rg2 {[%emt 0:04:57]} 30. Re2 {[%emt 0:02:36]} Rcg8 {[%emt 0:03:55]} 31. Bxd4 {[%emt 0:01:25]} cxd4 {[%emt 0:00:16]} 32. Rxg2 {[%emt 0:01:32]} hxg2+ {[%emt 0:00:19]} 33. Bxg2 {[%emt 0:00:05]} Bc6 {[%emt 0:00:57]} 34. Rf2 {[%emt 0:02:09]} Ng4 {[%emt 0:01:12]} 35. Re2 {[%emt 0:01:01]} Ne3 {[%emt 0:01:56]} 36. Nxe3 {[%emt 0:01:00]} dxe3 {[%emt 0:00:23]} 37. Qe1 {[%emt 0:00:29]} Rxg2 {[%emt 0:01:17]} 38. Rxg2 {[%emt 0:00:13]} Qxb2 {[%emt 0:00:10]} 39. Qf1 {[%emt 0:00:56]} e2 {[%emt 0:00:49]} 40. Qe1 {[%emt 0:00:03]} Qg7 {[%emt 0:01:21]} 0-1

[Event "SWE-ch Class 1 2019"]
[Site "Eskilstuna"]
[Date "2019.07.13"]
[Round "6.1"]
[White "Bernhard, Jonathan"]
[Black "Halvarsson, Peter"]
[Result "1-0"]
[ECO "E70"]
[WhiteElo "1917"]
[BlackElo "1903"]
[Annotator "NA"]
[PlyCount "67"]
[EventDate "2019.07.06"]
[EventType "tourn"]
[EventCountry "SWE"]
[SourceTitle "playchess.com"]
[Source "ChessBase"]
[SourceQuality "1"]
[TimeControl "40/5400+30:1800+30"]

1. d4 {[%emt 0:00:00]} g6 {[%emt 0:00:00]} 2. e4 {[%emt 0:00:00]} Bg7 {[%emt 0:00:00]} 3. c4 {[%emt 0:00:31]} c5 {[%emt 0:00:00]} 4. d5 {[%emt 0:00:09]} d6 {[%emt 0:00:00]} 5. Ne2 {[%emt 0:01:10]} Nf6 {[%emt 0:03:54]} 6. Nbc3 {[%emt 0:03:05]} O-O {[%emt 0:02:16]} 7. Ng3 {[%emt 0:00:27]} e6 {[%emt 0:02:39]} 8. Be2 {[%emt 0:00:37]} a6 {[%emt 0:10:15]} 9. O-O {[%emt 0:03:41]} exd5 {[%emt 0:04:10]} 10. exd5 {[%emt 0:00:03]} b5 {[%emt 0:10:25]} 11. cxb5 {[%emt 0:00:55]} Nbd7 {[%emt 0:02:51]} 12. Bf4 {[%emt 0:06:28]} Qc7 {[%emt 0:19:55]} 13. Qd2 {[%emt 0:03:42]} Re8 {[%emt 0:02:45]} 14. h3 {[%emt 0:07:50]} a5 {[%emt 0:09:25]} 15. Rac1 {[%emt 0:05:58]} Nb6 {[%emt 0:01:27]} 16. b3 {[%emt 0:03:06]} Rxe2 {[%emt 0:15:03]} 17. Qxe2 {[%emt 0:05:22]} Nbxd5 {[%emt 0:01:46]} 18. Nxd5 {[%emt 0:04:19]} Nxd5 {[%emt 0:00:02]} 19. Qe8+ {[%emt 0:00:02]} Bf8 {[%emt 0:00:19]} 20. Bh6 {[%emt 0:00:20]} Bb7 {[%emt 0:00:14]} 21. Rfe1 {[%emt 0:00:11]} Nf6 {[%emt 0:01:31]} 22. Qe3 {[%emt 0:00:10]} Nd5 {[%emt 0:08:25]} 23. Qd2 {[%emt 0:01:23]} Qd7 {[%emt 0:01:11]} 24. Ne4 {[%emt 0:09:58]} Be7 {[%emt 0:00:05]} 25. a4 {[%emt 0:01:03]} Qf5 {[%emt 0:01:29]} 26. Re2 {[%emt 0:02:03]} f6 {[%emt 0:02:04]} 27. Rce1 {[%emt 0:01:29]} Kf7 {[%emt 0:00:01]} 28. Nc3 {[%emt 0:03:41]} Re8 {[%emt 0:00:22]} 29. Nxd5 {[%emt 0:00:34]} Qxd5 {[%emt 0:01:15]} 30. Qxd5+ Bxd5 {[%emt 0:00:01]} 31. Bf4 {[%emt 0:00:59]} Bxb3 {[%emt 0:00:57]} 32. Bxd6 {[%emt 0:00:03]} Bxa4 {[%emt 0:00:33]} 33. Rxe7+ {[%emt 0:00:52]} Rxe7 {[%emt 0:00:04]} 34. Rxe7+ {[%emt 0:00:07]} 1-0

[Event "SWE-ch Class 1 2019"]
[Site "Eskilstuna"]
[Date "2019.07.13"]
[Round "6.2"]
[White "Lyngsjo, Hakan"]
[Black "Attefall, Fredrik"]
[Result "1/2-1/2"]
[ECO "C24"]
[WhiteElo "2029"]
[BlackElo "2077"]
[Annotator "NA"]
[PlyCount "107"]
[EventDate "2019.07.06"]
[EventType "tourn"]
[EventCountry "SWE"]
[SourceTitle "playchess.com"]
[Source "ChessBase"]
[SourceQuality "1"]
[TimeControl "40/5400+30:1800+30"]

1. e4 {[%emt 0:00:00]} e5 {[%emt 0:00:00]} 2. Bc4 {[%emt 0:00:00]} Bc5 {[%emt 0:06:02]} 3. Nf3 {[%emt 0:00:16]} d6 {[%emt 0:00:52]} 4. c3 {[%emt 0:00:44]} Nf6 {[%emt 0:06:27]} 5. d3 {[%emt 0:06:00]} h6 {[%emt 0:02:51]} 6. b4 {[%emt 0:01:42]} Bb6 {[%emt 0:00:22]} 7. Nbd2 {[%emt 0:00:59]} O-O {[%emt 0:03:19]} 8. Bb3 {[%emt 0:02:25]} Be6 {[%emt 0:04:20]} 9. Nc4 {[%emt 0:07:40]} Nbd7 {[%emt 0:06:25]} 10. O-O {[%emt 0:01:08]} Bg4 {[%emt 0:05:04]} 11. h3 {[%emt 0:02:07]} Bh5 {[%emt 0:00:16]} 12. Ne3 {[%emt 0:02:08]} c6 {[%emt 0:04:04]} 13. Nf5 {[%emt 0:04:33]} d5 {[%emt 0:03:31]} 14. Qe2 {[%emt 0:02:37]} Re8 {[%emt 0:14:26]} 15. g4 {[%emt 0:06:05]} Bg6 {[%emt 0:00:48]} 16. N3h4 {[%emt 0:00:31]} Nf8 {[%emt 0:01:14]} 17. Kh1 {[%emt 0:07:08]} Bxf5 {[%emt 0:14:15]} 18. Nxf5 {[%emt 0:02:20]} Qd7 {[%emt 0:01:14]} 19. Rg1 {[%emt 0:06:28]} N6h7 {[%emt 0:10:11]} 20. c4 {[%emt 0:07:47]} dxc4 {[%emt 0:04:28]} 21. Bxc4 {[%emt 0:02:31]} Ne6 {[%emt 0:00:08]} 22. Bxe6 {[%emt 0:05:14]} Rxe6 {[%emt 0:00:46]} 23. h4 {[%emt 0:01:14]} Rd8 {[%emt 0:02:08]} 24. Rg3 {[%emt 0:03:17]} g6 {[%emt 0:03:45]} 25. Nxh6+ {[%emt 0:01:14]} Kf8 {[%emt 0:00:25]} 26. Rf3 {[%emt 0:04:45]} f6 {[%emt 0:00:45]} 27. g5 {[%emt 0:00:46]} Rd6 {[%emt 0:00:15]} 28. gxf6 {[%emt 0:03:13]} Rxd3 {[%emt 0:00:02]} 29. Rxd3 {[%emt 0:01:36]} Qxd3 {[%emt 0:00:04]} 30. Qxd3 {[%emt 0:00:10]} Rxd3 {[%emt 0:00:03]} 31. Ng4 {[%emt 0:00:07]} Rh3+ {[%emt 0:01:21]} 32. Kg2 {[%emt 0:00:21]} Rxh4 {[%emt 0:00:31]} 33. Nxe5 {[%emt 0:00:08]} Rxe4 {[%emt 0:01:50]} 34. Bh6+ {[%emt 0:02:17]} Ke8 {[%emt 0:00:07]} 35. f7+ {[%emt 0:05:20]} Ke7 {[%emt 0:00:04]} 36. f4 {[%emt 0:00:51]} Bd4 {[%emt 0:04:11]} 37. Rf1 {[%emt 0:02:00]} Nf8 {[%emt 0:00:56]} 38. Bg7 {[%emt 0:06:12]} Ne6 {[%emt 0:00:48]} 39. f5 {[%emt 0:01:42]} gxf5 {[%emt 0:00:38]} 40. Rxf5 {[%emt 0:00:24]} Bxe5 {[%emt 0:00:06]} 41. Bxe5 {[%emt 0:31:11]} Re2+ {[%emt 0:04:27]} 42. Kg3 {[%emt 0:00:00]} Rxa2 {[%emt 0:00:27]} 43. Bf4 {[%emt 0:00:00]} Ra1 {[%emt 0:04:06]} 44. Bg5+ {[%emt 0:00:00]} Kd7 {[%emt 0:00:08]} 45. f8=Q {[%emt 0:00:00]} Nxf8 {[%emt 0:00:23]} 46. Rxf8 {[%emt 0:00:00]} b6 {[%emt 0:03:43]} 47. Rf7+ {[%emt 0:00:00]} Ke6 {[%emt 0:00:21]} 48. Rc7 {[%emt 0:00:00]} Kd5 {[%emt 0:00:42]} 49. Be7 {[%emt 0:00:00]} Rg1+ {[%emt 0:03:37]} 50. Kf2 {[%emt 0:00:00]} Rg7 {[%emt 0:00:16]} 51. Rxa7 {[%emt 0:00:00]} Ke6 {[%emt 0:00:08]} 52. Rc7 {[%emt 0:00:00]} c5 {[%emt 0:03:17]} 53. bxc5 {[%emt 0:00:00]} bxc5 {[%emt 0:00:13]} 54. Bd8 {[%emt 0:00:23]} 1/2-1/2

[Event "SWE-ch Class 1 2019"]
[Site "Eskilstuna"]
[Date "2019.07.13"]
[Round "6.3"]
[White "Bjorkman, Filip"]
[Black "Nordstrom, Felix"]
[Result "1/2-1/2"]
[ECO "D52"]
[WhiteElo "1956"]
[BlackElo "2064"]
[Annotator "NA"]
[PlyCount "83"]
[EventDate "2019.07.06"]
[EventType "tourn"]
[EventCountry "SWE"]
[SourceTitle "playchess.com"]
[Source "ChessBase"]
[SourceQuality "1"]
[TimeControl "40/5400+30:1800+30"]

1. d4 {[%emt 0:00:00]} Nf6 {[%emt 0:00:00]} 2. c4 {[%emt 0:00:00]} e6 {[%emt 0:00:15]} 3. Nf3 {[%emt 0:00:00]} d5 {[%emt 0:00:53]} 4. Nc3 {[%emt 0:00:00]} c6 {[%emt 0:01:50]} 5. Bg5 {[%emt 0:00:03]} Nbd7 {[%emt 0:00:40]} 6. e3 {[%emt 0:03:21]} Qa5 {[%emt 0:01:17]} 7. cxd5 {[%emt 0:00:10]} Nxd5 {[%emt 0:00:15]} 8. Rc1 {[%emt 0:00:07]} Bb4 {[%emt 0:06:48]} 9. a3 {[%emt 0:00:07]} Nxc3 {[%emt 0:07:23]} 10. axb4 {[%emt 0:09:35]} Nxd1 {[%emt 0:00:08]} 11. bxa5 {[%emt 0:00:04]} Nxb2 {[%emt 0:02:41]} 12. Rc2 {[%emt 0:04:33]} Na4 {[%emt 0:00:09]} 13. Rc4 {[%emt 0:00:05]} b5 {[%emt 0:02:45]} 14. Rxc6 {[%emt 0:00:06]} a6 {[%emt 0:01:04]} 15. Be2 {[%emt 0:01:34]} Nf6 {[%emt 0:05:46]} 16. O-O {[%emt 0:09:57]} Bd7 {[%emt 0:06:00]} 17. Rc2 {[%emt 0:01:28]} h6 {[%emt 0:03:55]} 18. Bh4 {[%emt 0:01:36]} Ke7 {[%emt 0:04:13]} 19. Nd2 {[%emt 0:09:35]} Rhc8 {[%emt 0:04:48]} 20. Rfc1 {[%emt 0:03:00]} Rxc2 {[%emt 0:04:40]} 21. Rxc2 {[%emt 0:00:01]} Rc8 {[%emt 0:00:22]} 22. Rxc8 {[%emt 0:00:25]} Bxc8 {[%emt 0:00:01]} 23. Ne4 {[%emt 0:01:28]} g5 {[%emt 0:12:56]} 24. Nxg5 {[%emt 0:00:54]} hxg5 {[%emt 0:00:56]} 25. Bxg5 {[%emt 0:00:01]} Nc3 {[%emt 0:01:20]} 26. Kf1 {[%emt 0:15:34]} b4 {[%emt 0:02:07]} 27. Bc4 {[%emt 0:01:07]} Nce4 {[%emt 0:00:45]} 28. Bxf6+ {[%emt 0:01:53]} Nxf6 {[%emt 0:04:28]} 29. Ke2 {[%emt 0:00:19]} Bb7 {[%emt 0:03:59]} 30. f3 {[%emt 0:00:06]} Nd7 {[%emt 0:00:40]} 31. Kd3 {[%emt 0:01:49]} Nb8 {[%emt 0:00:33]} 32. Kc2 {[%emt 0:03:10]} Nc6 {[%emt 0:00:50]} 33. Kb3 {[%emt 0:00:05]} Nxa5+ {[%emt 0:02:11]} 34. Kxb4 {[%emt 0:00:02]} Nxc4 {[%emt 0:00:20]} 35. Kxc4 {[%emt 0:00:01]} f5 {[%emt 0:01:46]} 36. Kc5 {[%emt 0:00:18]} Bd5 {[%emt 0:04:15]} 37. h3 {[%emt 0:04:54]} Kf6 {[%emt 0:01:59]} 38. Kb6 {[%emt 0:20:25]} Bc4 {[%emt 0:08:02]} 39. g4 {[%emt 0:00:15]} fxg4 {[%emt 0:00:53]} 40. hxg4 {[%emt 0:00:08]} Be2 {[%emt 0:02:39]} 41. f4 {[%emt 0:30:32]} Bxg4 {[%emt 0:06:45]} 42. e4 {[%emt 0:00:00] Ke5} 1/2-1/2